bitfinex-derivatives/quotes_BTCF0:USTF0_20241103
["timestamp","ask_amount","ask_price","bid_price","bid_amount"]
[1730657327568,0.073072,68449.0,68448.0,0.07270819]
[1730657328274,0.073072,68449.0,68448.0,0.17750566]
[1730657328569,0.074072,68449.0,68448.0,0.19150566]
[1730657328777,0.074072,68449.0,68448.0,0.11879747]
[1730657329474,0.074072,68449.0,68448.0,0.19147596]
[1730657329672,0.074072,68449.0,68448.0,0.028]
[1730657343375,0.13856701,68449.0,68448.0,0.028]
[1730657350773,0.13856701,68449.0,68448.0,0.19185807]
[1730657350976,0.13856701,68449.0,68448.0,0.19188158]
[1730657351686,0.13856701,68449.0,68448.0,0.11920309]
[1730657353682,0.13856701,68449.0,68448.0,0.11935325]
[1730657354790,0.13856701,68449.0,68448.0,0.22837784]
[1730657355787,0.074072,68449.0,68448.0,0.22837784]
[1730657355982,0.074072,68449.0,68448.0,0.29287285]
[1730657357495,0.073066,68455.0,68448.0,0.49233076]
[1730657357680,0.00219163,68468.0,68454.0,0.3608]
[1730657357883,0.00219163,68468.0,68466.0,0.08750988]
[1730657358091,0.07524363,68468.0,68467.0,0.09135325]
[1730657358288,0.13973864,68468.0,68467.0,0.19875391]
[1730657358488,0.13973864,68468.0,68467.0,0.09069765]
[1730657358489,0.17113864,68468.0,68467.0,0.09069765]
[1730657358794,0.17113864,68468.0,68467.0,0.16357061]
[1730657358981,0.60929864,68468.0,68467.0,0.07287296]
[1730657359177,0.60929864,68468.0,68453.0,0.10212426]
[1730657359178,0.073053,68467.0,68466.0,0.07287296]
[1730657359489,0.073055,68465.0,68463.0,0.07287296]
[1730657359693,0.13755101,68464.0,68463.0,0.07287296]
[1730657360490,0.073057,68463.0,68462.0,0.02297296]
[1730657360682,0.073057,68463.0,68457.0,0.08750794]
[1730657360683,0.872057,68463.0,68457.0,0.08750794]
[1730657360879,0.073061,68459.0,68453.0,0.08750794]
[1730657361083,0.073068,68453.0,68452.0,0.08750794]
[1730657361278,0.073068,68453.0,68452.0,0.17869965]
[1730657361687,0.073068,68453.0,68452.0,0.17865051]
[1730657362290,0.073068,68453.0,68452.0,0.09119171]
[1730657362794,0.074068,68453.0,68452.0,0.10519171]
[1730657363097,0.17235069,68453.0,68452.0,0.10519171]
[1730657363894,0.17235069,68453.0,68452.0,0.11919171]
[1730657364592,0.074068,68453.0,68452.0,0.11919171]
[1730657365692,0.073073,68448.0,68444.0,0.08746485]
[1730657365881,0.073073,68448.0,68434.0,0.00219164]
[1730657365882,0.073084,68438.0,68434.0,0.00219164]
[1730657366088,0.17136969,68435.0,68434.0,0.00219164]
[1730657366895,0.073095,68428.0,68427.0,0.0305]
[1730657367093,0.53217769,68428.0,68427.0,0.0305]
[1730657368893,0.17137769,68428.0,68427.0,0.0305]
[1730657369104,0.17137769,68428.0,68427.0,0.0445]
[1730657369105,0.17337769,68428.0,68427.0,0.0445]
[1730657369599,0.17337769,68428.0,68427.0,0.0395]
[1730657370193,0.075095,68428.0,68427.0,0.0395]
[1730657375595,0.3608,68440.0,68427.0,0.4003]
[1730657375793,0.073091,68432.0,68427.0,0.0395]
[1730657376002,0.073092,68431.0,68427.0,0.0395]
[1730657376909,0.073092,68431.0,68427.0,0.0335]
[1730657377606,0.00219272,68442.0,68430.0,0.3608]
[1730657377811,0.3608,68465.0,68441.0,0.09828269]
[1730657378003,0.3608,68465.0,68438.0,0.7216]
[1730657378004,0.3608,68465.0,68453.0,0.09828269]
[1730657378309,0.098,68464.0,68450.0,0.3608]
[1730657378511,0.073068,68453.0,68450.0,0.3608]
[1730657380509,0.074068,68453.0,68450.0,0.3738]
[1730657380706,0.074068,68453.0,68451.0,0.0325]
[1730657381106,0.075068,68453.0,68451.0,0.0325]
[1730657381704,0.074068,68453.0,68451.0,0.0325]
[1730657381905,0.002,68453.0,68451.0,0.0375]
[1730657382707,0.002,68453.0,68451.0,0.0495]
[1730657384104,0.001,68453.0,68451.0,0.0445]
[1730657384416,0.002,68453.0,68451.0,0.0495]
[1730657384711,0.002,68453.0,68451.0,0.10753249]
[1730657386801,0.002,68453.0,68451.0,0.0495]
[1730657388115,0.075068,68453.0,68451.0,0.017]
[1730657389907,0.073069,68452.0,68451.0,0.017]
[1730657390911,0.073069,68452.0,68451.0,0.012]
[1730657391120,0.074069,68452.0,68451.0,0.017]
[1730657391309,0.074069,68452.0,68451.0,0.06053839]
[1730657391915,0.074069,68452.0,68451.0,0.017]
[1730657392118,0.138369,68452.0,68451.0,0.017]
[1730657392311,0.138369,68452.0,68451.0,0.005]
[1730657392505,0.170869,68452.0,68451.0,0.017]
[1730657393419,0.0998,68452.0,68450.0,0.43205331]
[1730657393620,0.07307,68451.0,68450.0,0.43205331]
[1730657393818,0.07307,68451.0,68450.0,0.02771468]
[1730657394016,0.07307,68451.0,68448.0,0.04353863]
[1730657394314,0.19624269,68450.0,68445.0,0.04353863]
[1730657394619,0.073079,68443.0,68442.0,0.05803249]
[1730657394815,0.07308,68442.0,68437.0,0.14564922]
[1730657395019,0.073082,68440.0,68439.0,0.073082]
[1730657395412,0.073082,68440.0,68438.0,0.07256422]
[1730657395812,0.073083,68439.0,68438.0,0.07256422]
[1730657396121,0.073083,68439.0,68438.0,0.16265478]
[1730657396925,0.074083,68439.0,68438.0,0.17565478]
[1730657397421,0.073083,68439.0,68438.0,0.09009056]
[1730657397719,0.074083,68439.0,68438.0,0.10309056]
[1730657397918,0.02290411,68439.0,68438.0,0.10309056]
[1730657398114,0.02290411,68439.0,68438.0,0.10809056]
[1730657398115,0.075083,68439.0,68438.0,0.10809056]
[1730657398916,0.002,68439.0,68438.0,0.10809056]
[1730657399118,0.002,68439.0,68438.0,0.1077065]
[1730657399312,0.002,68439.0,68438.0,0.1807905]
[1730657399706,0.002,68439.0,68438.0,0.26783586]
[1730657399910,0.002,68439.0,68438.0,0.1807905]
[1730657400513,0.002,68439.0,68438.0,0.26783586]
[1730657400714,0.002,68439.0,68438.0,0.1807905]
[1730657401119,0.10232,68451.0,68438.0,0.5460665]
[1730657401315,0.073072,68449.0,68445.0,0.07259284]
[1730657401517,0.10232,68451.0,68445.0,0.07259284]
[1730657401820,0.073075,68446.0,68444.0,0.3608]
[1730657402027,0.073075,68446.0,68445.0,0.16216776]
[1730657402235,0.073075,68446.0,68445.0,0.07261982]
[1730657402524,0.001,68449.0,68445.0,0.09557904]
[1730657402726,0.001,68449.0,68445.0,0.006]
[1730657402727,0.073075,68446.0,68445.0,0.006]
[1730657402917,0.073075,68446.0,68445.0,0.16824798]
[1730657403116,0.074075,68446.0,68445.0,0.16824798]
[1730657403524,0.075075,68446.0,68445.0,0.1015977]
[1730657403726,0.075075,68446.0,68445.0,0.1035977]
[1730657404319,0.074075,68446.0,68445.0,0.08068865]
[1730657404518,0.075075,68446.0,68445.0,0.20450759]
[1730657404725,0.075075,68446.0,68445.0,0.014]
[1730657405631,0.075075,68446.0,68445.0,0.012]
[1730657407624,0.075075,68446.0,68445.0,0.10192644]
[1730657408423,0.075075,68446.0,68445.0,0.1747407]
[1730657408728,0.075075,68446.0,68445.0,0.012]
[1730657409532,0.075075,68446.0,68445.0,0.07024172]
[1730657412327,0.075075,68446.0,68445.0,0.012]
[1730657413237,0.435875,68446.0,68445.0,0.012]
[1730657415343,0.435875,68446.0,68436.0,0.07281496]
[1730657415344,0.43832,68445.0,68436.0,0.07281496]
[1730657415530,0.6628,68446.0,68432.0,0.07281496]
[1730657415531,0.073089,68433.0,68432.0,0.07281496]
[1730657415837,0.073091,68431.0,68430.0,0.07281496]
[1730657416042,0.073091,68431.0,68430.0,0.16192648]
[1730657416635,0.073091,68431.0,68430.0,0.07281496]
[1730657417343,0.074091,68431.0,68430.0,0.07881496]
[1730657417642,0.074091,68431.0,68430.0,0.006]
[1730657418243,0.074091,68431.0,68430.0,0.014]
[1730657418438,0.075091,68431.0,68430.0,0.014]
[1730657419044,0.075091,68431.0,68430.0,0.17593631]
[1730657419250,0.075091,68431.0,68430.0,0.08681496]
[1730657422354,0.075091,68431.0,68430.0,0.014]
[1730657423250,0.435891,68431.0,68430.0,0.014]
[1730657428159,0.075091,68431.0,68430.0,0.014]
[1730657428355,0.435891,68431.0,68430.0,0.014]
[1730657428543,0.075091,68431.0,68430.0,0.014]
[1730657428746,0.435891,68431.0,68430.0,0.014]
[1730657429558,0.075091,68431.0,68430.0,0.014]
[1730657429761,0.435891,68431.0,68430.0,0.014]
[1730657434160,0.075091,68431.0,68430.0,0.014]
[1730657434363,0.435891,68431.0,68430.0,0.014]
[1730657435261,0.50040921,68431.0,68430.0,0.014]
[1730657435768,0.435891,68431.0,68430.0,0.014]
[1730657436160,0.50040921,68431.0,68430.0,0.014]
[1730657436363,0.50040921,68431.0,68430.0,0.05763842]
[1730657437357,0.435891,68431.0,68430.0,0.014]
[1730657437564,0.435891,68431.0,68430.0,0.05763842]
[1730657438172,0.537291,68431.0,68430.0,0.05763842]
[1730657439367,0.537291,68431.0,68430.0,0.014]
[1730657443067,0.176491,68431.0,68430.0,0.014]
[1730657443266,0.537291,68431.0,68430.0,0.014]
[1730657443463,0.537291,68431.0,68427.0,0.00219145]
[1730657443767,0.537291,68431.0,68422.0,0.04369651]
[1730657443768,0.073114,68410.0,68409.0,6.8e-07]
[1730657443959,0.073114,68410.0,68392.0,0.0643]
[1730657443960,0.073132,68393.0,68392.0,0.0643]
[1730657444965,0.073132,68393.0,68392.0,0.09224746]
[1730657445169,0.073132,68393.0,68392.0,0.0643]
[1730657446478,0.075132,68393.0,68392.0,0.0643]
[1730657461668,0.002,68393.0,68392.0,0.0643]
[1730657461872,0.073127,68398.0,68393.0,0.073132]
[1730657462187,0.09830364,68402.0,68397.0,0.3608]
[1730657462188,0.073124,68401.0,68397.0,0.3608]
[1730657462680,0.073125,68400.0,68397.0,0.3608]
[1730657463177,0.001,68398.0,68397.0,0.3608]
[1730657463783,0.073111,68413.0,68402.0,0.073122]
[1730657463984,0.073117,68408.0,68403.0,0.103821]
[1730657464177,0.09830364,68408.0,68403.0,0.0307]
[1730657464490,0.07312,68404.0,68403.0,0.0307]
[1730657465186,0.07312,68404.0,68403.0,0.0317]
[1730657465584,0.07312,68404.0,68403.0,0.0307]
[1730657465777,0.07412,68404.0,68403.0,0.0327]
[1730657466786,0.07512,68404.0,68403.0,0.0327]
[1730657470791,0.07512,68404.0,68403.0,0.06145219]
[1730657471386,0.002,68404.0,68403.0,0.06145219]
[1730657471591,0.002,68404.0,68403.0,0.13457319]
[1730657472286,0.07512,68404.0,68403.0,0.06145219]
[1730657473494,0.07512,68404.0,68403.0,0.15057635]
[1730657481095,0.002,68404.0,68403.0,0.15057635]
[1730657481402,0.002,68404.0,68403.0,0.66225735]
[1730657481606,0.002,68404.0,68403.0,0.32969806]
[1730657481795,0.002,68404.0,68403.0,0.76825806]
[1730657484009,0.073106,68417.0,68404.0,0.07312]
[1730657484200,0.073106,68417.0,68415.0,0.07283186]
[1730657484502,0.20086364,68423.0,68414.0,0.3608]
[1730657484503,0.073104,68420.0,68416.0,0.08912416]
[1730657484693,0.073104,68420.0,68419.0,0.07281713]
[1730657484998,0.09830364,68423.0,68419.0,0.08912416]
[1730657485200,0.07529434,68424.0,68421.0,0.14590798]
[1730657485201,0.00219434,68424.0,68421.0,0.14590798]
[1730657485402,0.00219434,68424.0,68422.0,0.10300698]
[1730657485701,0.00219434,68424.0,68423.0,0.07280698]
[1730657485903,0.00219434,68424.0,68423.0,0.23408439]
[1730657486100,0.00219434,68424.0,68423.0,0.16127741]
[1730657486503,0.00219434,68424.0,68423.0,0.24867565]
[1730657486696,0.00219434,68424.0,68423.0,0.16127741]
[1730657486896,0.073091,68431.0,68423.0,0.17544188]
[1730657487196,0.073091,68431.0,68429.0,0.3608]
[1730657488896,0.073091,68431.0,68429.0,0.3628]
[1730657489292,0.073091,68431.0,68430.0,0.05810533]
[1730657490206,0.073091,68431.0,68429.0,0.42090533]
[1730657490505,0.073091,68431.0,68430.0,0.001]
[1730657491396,0.073091,68431.0,68429.0,0.41990533]
[1730657491597,0.073091,68431.0,68429.0,0.42190533]
[1730657491998,0.073091,68431.0,68429.0,0.41990533]
[1730657492201,0.073091,68431.0,68430.0,0.001]
[1730657493101,0.073091,68431.0,68430.0,0.002]
[1730657493597,0.073091,68431.0,68430.0,0.001]
[1730657494806,0.073091,68431.0,68430.0,0.002]
[1730657501205,0.53219464,68431.0,68430.0,0.002]
[1730657504114,0.433891,68431.0,68430.0,0.002]
[1730657504327,0.073091,68431.0,68430.0,0.002]
[1730657508318,0.073091,68431.0,68430.0,0.06010533]
[1730657509318,0.073091,68431.0,68430.0,0.002]
[1730657513225,0.073091,68431.0,68430.0,0.06015757]
[1730657513431,0.13760006,68431.0,68430.0,0.06015757]
[1730657514129,0.13760006,68431.0,68430.0,0.002]
[1730657517327,0.13760006,68431.0,68430.0,0.0898997]
[1730657521322,0.073091,68431.0,68430.0,0.08993184]
[1730657523032,0.073091,68431.0,68430.0,0.17739993]
[1730657523931,0.073091,68431.0,68430.0,0.08993184]
[1730657530926,0.3608,68439.0,68431.0,0.073091]
[1730657531131,0.3608,68439.0,68436.0,0.08749864]
[1730657531339,0.3608,68439.0,68435.0,0.13759606]
[1730657531340,0.13759106,68440.0,68438.0,0.08749864]
[1730657531545,0.13759106,68440.0,68439.0,0.08793184]
[1730657531838,0.13759106,68440.0,68439.0,0.17543048]
[1730657532032,0.06450906,68440.0,68439.0,0.17543048]
[1730657532228,0.06450906,68440.0,68439.0,0.08793184]
[1730657532429,0.073084,68439.0,68437.0,0.0657]
[1730657533236,0.13758806,68443.0,68437.0,0.0657]
[1730657533431,0.13758806,68443.0,68437.0,0.138785]
[1730657533638,0.01,68439.0,68437.0,0.138785]
[1730657533836,0.01,68439.0,68438.0,0.073084]
[1730657534146,0.01,68439.0,68438.0,0.13759306]
[1730657534339,0.014,68439.0,68438.0,0.19586964]
[1730657534836,0.014,68439.0,68438.0,0.13759306]
[1730657535453,0.014,68439.0,68438.0,0.19582612]
[1730657535640,0.014,68439.0,68438.0,0.57595306]
[1730657536247,0.014,68443.0,68441.0,0.07308]
[1730657537546,0.00219239,68445.0,68441.0,0.07508]
[1730657537748,0.00219239,68445.0,68444.0,0.3608]
[1730657539642,0.00219239,68445.0,68444.0,0.3618]
[1730657539849,0.07526839,68445.0,68444.0,0.3618]
[1730657540254,0.07526839,68445.0,68444.0,0.39110465]
[1730657541639,0.43606839,68445.0,68444.0,0.002]
[1730657543149,0.43606839,68445.0,68444.0,0.001]
[1730657543445,0.44306839,68445.0,68440.0,0.08636999]
[1730657543636,0.44306839,68445.0,68430.0,0.08749864]
[1730657543637,0.073092,68430.0,68426.0,0.07284572]
[1730657543839,0.49840506,68427.0,68426.0,0.07284572]
[1730657544145,0.073098,68425.0,68424.0,0.07284572]
[1730657544448,0.13760706,68425.0,68424.0,0.08828101]
[1730657544652,0.13961108,68425.0,68424.0,0.08828101]
[1730657545240,0.06651308,68425.0,68424.0,0.08785825]
[1730657545437,0.17341966,68425.0,68424.0,0.08785825]
[1730657545838,0.17441966,68425.0,68424.0,0.09785825]
[1730657546646,0.17441966,68425.0,68424.0,0.1706173]
[1730657546848,0.61285966,68425.0,68424.0,0.1706173]
[1730657547251,0.61385966,68425.0,68424.0,0.1726173]
[1730657548355,0.61385966,68425.0,68424.0,0.08475905]
[1730657548854,0.61385966,68425.0,68424.0,0.012]
[1730657553249,0.17541966,68425.0,68424.0,0.012]
[1730657555357,0.89701966,68425.0,68424.0,0.012]
[1730657563354,0.073111,68413.0,68406.0,0.07275905]
[1730657563555,0.073111,68413.0,68400.0,0.073124]
[1730657563556,0.073121,68403.0,68402.0,0.0304]
[1730657563760,0.17344266,68403.0,68402.0,0.0304]
[1730657564765,0.17344266,68403.0,68402.0,0.07397826]
[1730657564959,0.17344266,68403.0,68402.0,0.0304]
[1730657565660,0.17444266,68403.0,68402.0,0.0304]
[1730657566168,0.17544266,68403.0,68402.0,0.0304]
[1730657567363,0.14166685,68403.0,68402.0,0.0304]
[1730657569367,0.073124,68400.0,68399.0,0.04357826]
[1730657569567,0.073124,68400.0,68395.0,0.04357826]
[1730657569568,0.073129,68396.0,68395.0,0.04357826]
[1730657569762,0.23791485,68396.0,68395.0,0.04357826]
[1730657569965,0.07313,68395.0,68394.0,0.04357826]
[1730657570167,0.13767183,68395.0,68394.0,0.04357826]
[1730657570870,0.13967585,68395.0,68394.0,0.04357826]
[1730657571462,0.073133,68392.0,68391.0,0.0317]
[1730657571865,0.07513702,68392.0,68391.0,0.0317]
[1730657572773,0.07613702,68392.0,68391.0,0.0317]
[1730657573473,0.07713702,68392.0,68391.0,0.0317]
[1730657583277,0.00400402,68392.0,68391.0,0.0317]
[1730657583466,0.00400402,68392.0,68391.0,0.104834]
[1730657584184,0.00400402,68392.0,68391.0,0.17759305]
[1730657585179,0.00400402,68392.0,68391.0,0.26699798]
[1730657586380,0.00400402,68392.0,68391.0,0.19423893]
[1730657590284,0.00400402,68392.0,68391.0,0.28173757]
[1730657590481,0.00400402,68392.0,68391.0,0.19423893]
[1730657590785,0.00400402,68392.0,68391.0,0.28170091]
[1730657591279,0.00400402,68392.0,68391.0,0.19423893]
[1730657591878,0.00400402,68392.0,68391.0,0.30089773]
[1730657593286,0.00400402,68392.0,68391.0,0.40790737]
[1730657593489,0.00400402,68392.0,68391.0,0.30124857]
[1730657595680,0.00400402,68392.0,68391.0,0.66204857]
[1730657599088,0.14167885,68392.0,68391.0,0.45040675]
[1730657601491,0.14167885,68392.0,68391.0,0.55760847]
[1730657602388,0.14167885,68392.0,68391.0,0.19680847]
[1730657602589,0.14167885,68392.0,68391.0,0.1971919]
[1730657604483,0.07713702,68392.0,68391.0,0.1971919]
[1730657605483,0.07713702,68392.0,68391.0,0.19709609]
[1730657607392,0.07713702,68392.0,68391.0,0.19711321]
[1730657609993,0.00400402,68392.0,68391.0,0.19711321]
[1730657610298,0.00400402,68392.0,68391.0,0.27024721]
[1730657613599,0.00400402,68392.0,68391.0,0.37198787]
[1730657613789,0.00400402,68392.0,68391.0,0.39474539]
[1730657617706,0.00400402,68392.0,68391.0,0.37254284]
[1730657618305,0.00400402,68392.0,68391.0,0.27024721]
[1730657618695,0.0628355,68392.0,68391.0,0.32133889]
[1730657618909,0.0628355,68392.0,68391.0,0.32633889]
[1730657621410,0.0628355,68392.0,68391.0,0.32621657]
[1730657622405,0.1359685,68392.0,68391.0,0.32621657]
[1730657622908,0.1359685,68392.0,68391.0,0.20190074]
[1730657626823,0.073133,68392.0,68391.0,0.20190074]
[1730657632119,0.073133,68392.0,68391.0,0.56270074]
[1730657635232,0.073133,68392.0,68391.0,0.56265335]
[1730657638026,0.06454183,68394.0,68391.0,0.56265335]
[1730657638228,0.06454183,68402.0,68392.0,0.19685335]
[1730657638427,0.073125,68400.0,68396.0,0.08769944]
[1730657638734,0.13766783,68399.0,68397.0,0.08980693]
[1730657639040,0.13766783,68399.0,68398.0,0.08980693]
[1730657639926,0.06454183,68399.0,68398.0,0.0897202]
[1730657640235,0.13866783,68399.0,68398.0,0.0897202]
[1730657641334,0.13866783,68399.0,68398.0,0.17741964]
[1730657641925,0.13866783,68399.0,68398.0,0.17841964]
[1730657641926,0.13966783,68399.0,68398.0,0.17841964]
[1730657642638,0.13966783,68399.0,68398.0,0.19764506]
[1730657643226,0.13966783,68399.0,68398.0,0.19763586]
[1730657644233,0.13966783,68399.0,68398.0,0.09070771]
[1730657644429,0.13966783,68399.0,68398.0,0.11867371]
[1730657645232,0.13966783,68399.0,68398.0,0.22560364]
[1730657645731,0.13966783,68399.0,68398.0,0.11867371]
[1730657647139,0.13966783,68399.0,68398.0,0.22560736]
[1730657647739,0.13966783,68399.0,68398.0,0.11867371]
[1730657647928,0.13966783,68399.0,68398.0,0.11867862]
[1730657648326,0.13966783,68399.0,68398.0,0.22561652]
[1730657649639,0.13966783,68399.0,68398.0,0.11867862]
[1730657652040,0.13966783,68399.0,68398.0,0.22559379]
[1730657660541,0.13966783,68399.0,68398.0,0.11867862]
[1730657662049,0.13966783,68399.0,68398.0,0.22564559]
[1730657662649,0.13966783,68399.0,68398.0,0.11867862]
[1730657666043,0.13966783,68399.0,68398.0,0.22560112]
[1730657666854,0.13966783,68399.0,68398.0,0.22559816]
[1730657669852,0.075126,68399.0,68398.0,0.22559816]
[1730657671360,0.075126,68399.0,68398.0,0.13584895]
[1730657671655,0.075126,68399.0,68398.0,0.22551874]
[1730657675664,0.075126,68399.0,68398.0,0.11863579]
[1730657676059,0.075126,68399.0,68398.0,0.11864576]
[1730657678356,0.075126,68399.0,68398.0,0.22556166]
[1730657680866,0.075126,68399.0,68398.0,0.22561519]
[1730657685665,0.075126,68399.0,68398.0,0.22560559]
[1730657689664,0.075126,68399.0,68398.0,0.19763959]
[1730657690070,0.075126,68399.0,68398.0,0.09070941]
[1730657690770,0.075126,68399.0,68398.0,0.17849634]
[1730657690972,0.075126,68399.0,68398.0,0.09070941]
[1730657695285,0.435926,68399.0,68398.0,0.09070941]
[1730657698575,0.533926,68399.0,68398.0,0.09070941]
[1730657699487,0.435926,68399.0,68398.0,0.09070941]
[1730657699687,0.435926,68399.0,68398.0,0.09071371]
[1730657703191,0.435926,68399.0,68398.0,0.09068592]
[1730657703989,0.075126,68399.0,68398.0,0.09068592]
[1730657707393,0.075126,68399.0,68398.0,0.17842037]
[1730657708392,0.075126,68399.0,68398.0,0.09068592]
[1730657712689,0.075126,68399.0,68398.0,0.09064908]
[1730657713196,0.075126,68399.0,68398.0,0.19750535]
[1730657714107,0.075126,68399.0,68398.0,0.19747159]
[1730657714394,0.002,68399.0,68398.0,0.19747159]
[1730657716799,0.075126,68399.0,68398.0,0.19747159]
[1730657721807,0.075126,68399.0,68398.0,0.19709305]
[1730657725813,0.075126,68399.0,68398.0,0.19693622]
[1730657726512,0.075126,68399.0,68398.0,0.19694071]
[1730657728313,0.075126,68399.0,68398.0,0.19695754]
[1730657731107,0.075126,68399.0,68398.0,0.2863927]
[1730657731420,0.075126,68399.0,68398.0,0.19699445]
[1730657740611,0.075126,68399.0,68398.0,0.19718454]
[1730657742214,0.075126,68399.0,68398.0,0.09050181]
[1730657745324,0.075126,68399.0,68398.0,0.09049016]
[1730657746310,0.075126,68399.0,68398.0,0.19704447]
[1730657746518,0.075126,68399.0,68398.0,0.09049016]
[1730657747014,0.075126,68399.0,68398.0,0.19704507]
[1730657747420,0.075126,68399.0,68398.0,0.09049016]
[1730657747616,0.169226,68399.0,68398.0,0.09049016]
[1730657748225,0.169226,68399.0,68398.0,0.16361056]
[1730657748425,0.169226,68399.0,68398.0,0.20016133]
[1730657750030,0.169226,68399.0,68398.0,0.20029392]
[1730657750325,0.169226,68399.0,68398.0,0.11067117]
[1730657750717,0.19722705,68399.0,68398.0,0.11067117]
[1730657751327,0.19722705,68399.0,68398.0,0.03755077]
[1730657751732,0.169226,68399.0,68398.0,0.03755077]
[1730657753437,0.530026,68399.0,68398.0,0.03755077]
[1730657754032,0.499126,68399.0,68398.0,0.03755077]
[1730657757334,0.435926,68399.0,68398.0,0.03755077]
[1730657758942,0.07313,68395.0,68394.0,0.0731204]
[1730657759132,0.13767183,68395.0,68394.0,0.16278305]
[1730657759334,0.13767183,68395.0,68394.0,0.0731204]
[1730657759535,0.64085366,68395.0,68394.0,0.0731204]
[1730657759741,0.073131,68394.0,68393.0,0.0731204]
[1730657760131,0.511771,68394.0,68393.0,0.0731204]
[1730657761041,0.073137,68388.0,68384.0,0.00219324]
[1730657761341,0.42534183,68385.0,68384.0,0.00219324]
[1730657761932,0.42534183,68385.0,68384.0,0.06062713]
[1730657762436,0.42534183,68385.0,68384.0,0.00219324]
[1730657762641,0.49848283,68385.0,68384.0,0.00219324]
[1730657764137,0.49948283,68385.0,68384.0,0.00219324]
[1730657764436,0.49948283,68385.0,68384.0,0.04597246]
[1730657764837,0.49948283,68385.0,68384.0,0.00219324]
[1730657765029,0.49948283,68385.0,68383.0,0.02752584]
[1730657765030,0.073142,68384.0,68383.0,0.02752584]
[1730657765235,0.073143,68383.0,68382.0,0.03]
[1730657766441,0.073143,68383.0,68382.0,0.05839427]
[1730657767445,0.434943,68383.0,68382.0,0.05839427]
[1730657767643,0.435943,68383.0,68382.0,0.05839427]
[1730657768441,0.435943,68383.0,68382.0,0.10214477]
[1730657769731,0.435943,68383.0,68382.0,0.0737505]
[1730657771146,0.435943,68383.0,68382.0,0.03]
[1730657772240,0.435943,68383.0,68382.0,0.0737505]
[1730657773947,0.533623,68383.0,68382.0,0.0737505]
[1730657774842,0.533623,68383.0,68382.0,0.03]
[1730657776139,0.533623,68383.0,68382.0,0.0737505]
[1730657778645,0.533623,68383.0,68382.0,0.03]
[1730657781155,0.533623,68383.0,68382.0,0.07377482]
[1730657781862,0.533623,68383.0,68382.0,0.03]
[1730657782155,0.533623,68383.0,68378.0,0.05837287]
[1730657782156,0.073147,68379.0,68378.0,0.05837287]
[1730657782345,0.073151,68375.0,68374.0,0.0302]
[1730657782545,0.13769283,68375.0,68374.0,0.0302]
[1730657782853,0.23537283,68375.0,68374.0,0.0302]
[1730657783352,0.29991466,68375.0,68374.0,0.0302]
[1730657783656,0.29991466,68375.0,68366.0,0.08754958]
[1730657783657,0.22776366,68375.0,68366.0,0.08754958]
[1730657783959,0.073164,68363.0,68362.0,0.0933]
[1730657784255,0.23538583,68363.0,68362.0,0.18352636]
[1730657785443,0.23538583,68363.0,68362.0,0.0933]
[1730657785847,0.23638583,68363.0,68362.0,0.0933]
[1730657786643,0.23738583,68363.0,68362.0,0.0933]
[1730657788358,0.23738583,68363.0,68362.0,0.03]
[1730657788359,0.30192766,68363.0,68362.0,0.03]
[1730657788542,0.073173,68355.0,68354.0,0.032]
[1730657788747,0.073173,68355.0,68354.0,0.0643]
[1730657788748,0.29993666,68355.0,68354.0,0.0643]
[1730657790346,0.30093666,68355.0,68354.0,0.0643]
[1730657791657,0.30193666,68355.0,68354.0,0.0643]
[1730657793249,0.23539483,68355.0,68354.0,0.0643]
[1730657793449,0.23739483,68355.0,68354.0,0.0643]
[1730657793650,0.13971483,68355.0,68354.0,0.0643]
[1730657793853,0.23627483,68355.0,68354.0,0.0643]
[1730657794058,0.13971483,68355.0,68354.0,0.0643]
[1730657794856,0.23727483,68355.0,68354.0,0.0643]
[1730657798562,0.13971483,68355.0,68354.0,0.0643]
[1730657800566,0.13971483,68355.0,68354.0,0.137474]
[1730657803154,0.06654183,68355.0,68354.0,0.137474]
[1730657803352,0.002,68355.0,68354.0,0.137474]
[1730657805365,0.06654183,68355.0,68354.0,0.137474]
[1730657810062,0.06654183,68355.0,68354.0,0.22859978]
[1730657811965,0.3608,68365.0,68364.0,0.073163]
[1730657812168,0.3608,68365.0,68364.0,0.14621848]
[1730657812369,0.3608,68365.0,68364.0,0.16428023]
[1730657813276,0.42634183,68365.0,68364.0,0.16428023]
[1730657813476,0.50050383,68365.0,68364.0,0.09211723]
[1730657817474,0.50050383,68365.0,68364.0,0.11989678]
[1730657818172,0.50050383,68365.0,68364.0,0.02877955]
[1730657822774,0.50050383,68365.0,68364.0,0.001]
[1730657823680,0.56504566,68365.0,68364.0,0.001]
[1730657823866,0.50050383,68365.0,68364.0,0.001]
[1730657824175,0.52826652,68365.0,68364.0,0.001]
[1730657824778,0.52826652,68365.0,68364.0,0.03756895]
[1730657825083,0.59280835,68365.0,68364.0,0.03756895]
[1730657825380,0.52826652,68365.0,68364.0,0.03756895]
[1730657826277,0.59280835,68365.0,68364.0,0.03756895]
[1730657826782,1.03064835,68365.0,68364.0,0.03756895]
[1730657826975,1.03064835,68365.0,68364.0,0.04956895]
[1730657827177,1.03164835,68365.0,68364.0,0.06356895]
[1730657828975,0.95848635,68365.0,68357.0,0.0731156]
[1730657829176,0.19362549,68355.0,68340.0,0.08766658]
[1730657829375,0.073185,68343.0,68342.0,0.09031431]
[1730657829576,0.170625,68343.0,68342.0,0.09031431]
[1730657830075,0.09744,68343.0,68341.0,0.03658126]
[1730657830270,0.20227066,68342.0,68341.0,0.05058126]
[1730657830978,0.20227066,68342.0,68341.0,0.03658126]
[1730657832473,0.20327066,68342.0,68341.0,0.03658126]
[1730657833081,0.20427066,68342.0,68341.0,0.03658126]
[1730657833384,0.17362506,68342.0,68341.0,0.03658126]
[1730657834068,0.17262506,68342.0,68341.0,0.03658126]
[1730657834269,0.17362506,68342.0,68341.0,0.03658126]
[1730657838293,0.63783612,68342.0,68334.0,0.032]
[1730657838486,0.53243206,68335.0,68334.0,0.032]
[1730657839786,0.53343206,68335.0,68334.0,0.033]
[1730657840386,0.53443206,68335.0,68334.0,0.033]
[1730657846790,0.63191206,68335.0,68334.0,0.033]
[1730657848887,0.533474,68335.0,68334.0,0.033]